bitfinex-derivatives/quotes_BTCF0:USTF0_20250411
["timestamp","ask_amount","ask_price","bid_price","bid_amount"]
[1744334333824,0.1261988,79554.0,79553.0,0.02655042]
[1744334334534,0.1258051,79550.0,79549.0,0.22539888]
[1744334335438,0.1688051,79550.0,79549.0,0.22539888]
[1744334335937,0.1258143,79545.0,79544.0,0.1258141]
[1744334336331,0.1258162,79543.0,79542.0,0.2306257]
[1744334336635,0.1258162,79543.0,79542.0,0.0629088]
[1744334336838,0.1924071,79545.0,79541.0,0.22539888]
[1744334336839,0.1258178,79542.0,79541.0,0.22539888]
[1744334337030,0.2123178,79542.0,79541.0,0.22539888]
[1744334339540,0.2123178,79542.0,79538.0,0.043]
[1744334339541,0.1258225,79539.0,79538.0,0.043]
[1744334339842,0.1258225,79539.0,79538.0,0.1688241]
[1744334340138,0.0435,79542.0,79541.0,0.1258194]
[1744334340840,0.1258194,79541.0,79540.0,0.3608]
[1744334341041,0.1258241,79538.0,79537.0,0.09864]
[1744334341242,0.1258304,79534.0,79533.0,0.4056]
[1744334341438,0.1258304,79534.0,79533.0,0.0448]
[1744334341739,0.062888,79569.0,79542.0,0.0629082]
[1744334342041,0.3608,79582.0,79555.0,0.1257972]
[1744334342042,0.18855906,79556.0,79555.0,0.1257972]
[1744334342243,0.00055906,79556.0,79555.0,1.3344372]
[1744334342438,0.00055906,79556.0,79555.0,1.5844372]
[1744334342628,0.00055906,79556.0,79555.0,1.3344372]
[1744334343544,0.000187,79556.0,79555.0,1.3344372]
[1744334344649,0.13101749,79561.0,79560.0,0.1257893]
[1744334344947,0.0004,79578.0,79577.0,0.1257624]
[1744334345144,0.0004,79578.0,79577.0,0.96270381]
[1744334345339,0.0004,79578.0,79577.0,1.94270381]
[1744334345539,0.0004,79578.0,79577.0,1.9260024]
[1744334345740,0.0004,79578.0,79577.0,2.0149024]
[1744334346646,0.0004,79578.0,79577.0,2.03164186]
[1744334348948,0.0004,79578.0,79577.0,2.28164186]
[1744334349145,0.0891,79599.0,79598.0,0.1257293]
[1744334349343,0.0435,79599.0,79598.0,0.1257293]
[1744334350659,0.1692277,79599.0,79598.0,0.1257293]
[1744334350851,0.0435,79599.0,79598.0,0.1257293]
[1744334353347,0.0435,79599.0,79598.0,0.13531131]
[1744334353558,0.0435,79599.0,79598.0,0.22581131]
[1744334356457,0.1692277,79599.0,79598.0,0.00958201]
[1744334356754,0.1692277,79599.0,79598.0,0.1257293]
[1744334357255,0.1257277,79599.0,79598.0,0.22399725]
[1744334357457,0.1069623,79601.0,79600.0,0.1257261]
[1744334358353,0.0628623,79601.0,79600.0,0.1257261]
[1744334358755,0.1885803,79606.0,79605.0,0.1257182]
[1744334364050,0.0441,79608.0,79607.0,0.125715]
[1744334364350,0.1698135,79608.0,79607.0,0.125715]
[1744334366559,0.1698135,79608.0,79607.0,0.14202205]
[1744334368458,0.0628481,79619.0,79612.0,0.0628534]
[1744334368660,0.0409,79618.0,79617.0,0.1256992]
[1744334368864,0.0409,79618.0,79613.0,0.08032763]
[1744334368865,0.125704,79615.0,79614.0,0.1257008]
[1744334369359,0.166604,79615.0,79614.0,0.15950589]
[1744334369556,0.166604,79615.0,79614.0,0.20110589]
[1744334369755,0.211504,79615.0,79614.0,0.24380589]
[1744334370165,0.0858,79615.0,79614.0,0.24380589]
[1744334370359,0.2115024,79615.0,79614.0,0.24380589]
[1744334371064,0.0858,79615.0,79614.0,0.24380589]
[1744334371366,0.0858,79615.0,79614.0,0.24444198]
[1744334371558,0.2115024,79615.0,79614.0,0.24444198]
[1744334371867,0.2115024,79615.0,79614.0,0.21609459]
[1744334372257,0.2115024,79615.0,79614.0,0.20284518]
[1744334372571,0.0449,79615.0,79614.0,0.20284518]
[1744334373367,0.0449,79615.0,79614.0,0.21608284]
[1744334373866,0.126085,79626.0,79625.0,0.1256866]
[1744334374067,0.171285,79626.0,79625.0,0.16012778]
[1744334374265,0.0456,79626.0,79625.0,0.16012778]
[1744334375163,0.0456,79626.0,79625.0,0.17337477]
[1744334375362,0.171285,79626.0,79625.0,0.20292778]
[1744334375765,0.215585,79626.0,79625.0,0.21621454]
[1744334377273,0.215585,79626.0,79625.0,0.20292778]
[1744334378569,0.0899,79626.0,79625.0,0.20292778]
[1744334378763,0.0004,79626.0,79625.0,0.20292778]
[1744334379363,0.0004,79626.0,79625.0,0.21620816]
[1744334380575,0.0004,79626.0,79625.0,0.14620816]
[1744334382470,0.0004,79626.0,79625.0,0.14662828]
[1744334383279,0.0004,79626.0,79625.0,0.14172828]
[1744334385272,0.0004,79626.0,79625.0,0.1284479]
[1744334386578,0.0004,79626.0,79625.0,0.2268079]
[1744334387781,0.0004,79626.0,79625.0,0.1284479]
[1744334390383,0.0004,79626.0,79625.0,1.2068079]
[1744334390682,0.04484959,79634.0,79633.0,0.125674]
[1744334390886,0.12924959,79634.0,79633.0,0.50502825]
[1744334391273,0.12924959,79634.0,79633.0,0.5213353]
[1744334392182,0.12924959,79634.0,79633.0,0.5647353]
[1744334392379,0.041,79634.0,79633.0,0.57802468]
[1744334394185,0.041,79634.0,79633.0,0.63278468]
[1744334394386,0.041,79634.0,79633.0,0.6194953]
[1744334395380,0.041,79634.0,79633.0,0.67352752]
[1744334395981,0.041,79634.0,79633.0,0.63272752]
[1744334396379,0.0818,79634.0,79633.0,0.6194953]
[1744334396890,0.0818,79634.0,79633.0,0.6618953]
[1744334397094,0.0818,79634.0,79633.0,0.6040353]
[1744334397288,0.041,79634.0,79633.0,0.6040353]
[1744334399290,0.041,79634.0,79633.0,0.5637353]
[1744334400392,0.1666724,79634.0,79633.0,0.3956613]
[1744334400699,0.041,79634.0,79633.0,0.5213353]
[1744334401093,0.041,79634.0,79633.0,0.5654353]
[1744334402098,0.041,79634.0,79633.0,0.6090353]
[1744334402801,0.1256509,79648.0,79647.0,0.1256503]
[1744334402994,0.0843,79648.0,79647.0,0.14420455]
[1744334403404,0.0843,79648.0,79647.0,0.1605116]
[1744334403593,0.0843,79648.0,79647.0,0.16983935]
[1744334404400,0.0843,79648.0,79647.0,0.54388794]
[1744334404597,0.0843,79648.0,79647.0,0.58588794]
[1744334405489,0.2523503,79648.0,79647.0,0.41823764]
[1744334405797,0.2523503,79648.0,79647.0,0.54388954]
[1744334406500,0.6131503,79648.0,79647.0,0.05743764]
[1744334406703,0.6131503,79648.0,79647.0,0.05755969]
[1744334407090,0.6131503,79648.0,79647.0,0.04425136]
[1744334407287,0.6131503,79648.0,79647.0,0.03492361]
[1744334407495,0.1885195,79631.0,79628.0,0.28823878]
[1744334407691,0.1885195,79631.0,79630.0,0.1256735]
[1744334407894,0.1885195,79631.0,79630.0,0.13905265]
[1744334408402,0.0628392,79631.0,79630.0,0.13905265]
[1744334408902,0.0628317,79640.0,79639.0,0.1256629]
[1744334409103,0.0628317,79640.0,79639.0,0.13904205]
[1744334409297,0.0628317,79640.0,79639.0,0.01337915]
[1744334410202,0.0628317,79640.0,79639.0,0.13904365]
[1744334410403,0.0628317,79640.0,79639.0,0.01337915]
[1744334410604,0.1075317,79640.0,79639.0,0.01337915]
[1744334410800,0.1075317,79640.0,79639.0,0.13904365]
[1744334415696,0.1256787,79630.0,79629.0,0.1885161]
[1744334416007,0.1256787,79630.0,79629.0,0.01333803]
[1744334416200,0.4864787,79630.0,79629.0,0.01333803]
[1744334416405,0.5312787,79630.0,79629.0,0.01333803]
[1744334416607,0.1256803,79629.0,79626.0,0.35127175]
[1744334416908,0.1256835,79627.0,79626.0,0.35127225]
[1744334417507,0.1256835,79627.0,79626.0,0.22558725]
[1744334418409,0.3756835,79627.0,79626.0,0.22558725]
[1744334418615,0.1256835,79627.0,79626.0,0.22558725]
[1744334418908,0.3756835,79627.0,79626.0,0.22558725]
[1744334419109,0.3756835,79627.0,79626.0,0.00018837]
[1744334419613,0.1256835,79627.0,79626.0,0.00018837]
[1744334419810,0.1256835,79627.0,79626.0,0.01709286]
[1744334422807,0.1256835,79627.0,79626.0,0.03520965]
[1744334422808,0.1694835,79627.0,79626.0,0.03520965]
[1744334423206,0.1694835,79627.0,79626.0,0.01709286]
[1744334429610,0.1257024,79615.0,79614.0,0.00938624]
[1744334429913,0.4865024,79615.0,79614.0,0.00938624]
[1744334430103,0.4865024,79615.0,79609.0,0.0866]
[1744334430104,0.1257103,79610.0,79609.0,0.0866]
[1744334430309,0.1257103,79610.0,79609.0,0.01834035]
[1744334430513,0.1257166,79606.0,79605.0,0.0421]
[1744334430713,0.1257166,79606.0,79605.0,0.06044111]
[1744334431212,0.1257166,79606.0,79605.0,0.05156732]
[1744334431509,0.1257166,79606.0,79603.0,0.00050249]
[1744334431510,0.1257198,79604.0,79603.0,0.00050249]
[1744334431713,0.1257198,79604.0,79603.0,0.04500249]
[1744334432015,0.1257198,79604.0,79603.0,0.23119255]
[1744334434216,0.1257198,79604.0,79603.0,0.11511948]
[1744334434416,0.1257198,79604.0,79603.0,0.09675082]
[1744334434607,0.13795617,79604.0,79603.0,0.08710249]
[1744334434812,0.22195617,79604.0,79603.0,0.08710249]
[1744334438322,0.4236583,79607.0,79603.0,0.16824703]
[1744334438624,0.4236583,79607.0,79606.0,0.1257166]
[1744334439723,0.0628583,79607.0,79606.0,0.1257166]
[1744334440225,0.0628583,79607.0,79606.0,0.14390373]
[1744334440829,0.0628583,79607.0,79606.0,0.1257166]
[1744334441021,0.0628583,79607.0,79606.0,0.14414166]
[1744334442019,0.0628583,79607.0,79606.0,0.0355482]
[1744334442623,0.1045583,79607.0,79606.0,0.0355482]
[1744334443513,0.4653583,79607.0,79606.0,0.0355482]
[1744334445933,0.4236583,79607.0,79606.0,0.0355482]
[1744334446629,0.4680583,79607.0,79606.0,0.0355482]
[1744334446834,0.4680583,79607.0,79606.0,0.01712314]
[1744334447035,0.5523583,79607.0,79606.0,0.01712314]
[1744334448045,0.5097583,79607.0,79606.0,0.01712314]
[1744334455444,0.4680583,79607.0,79606.0,0.01712314]
[1744334456138,0.1072583,79607.0,79606.0,0.03530019]
[1744334459337,0.0628583,79607.0,79606.0,0.16101679]
[1744334459838,0.0628583,79607.0,79606.0,0.03530019]
[1744334460038,0.1050583,79607.0,79606.0,0.03530019]
[1744334460836,0.1477583,79607.0,79606.0,0.03530019]
[1744334461748,0.1477583,79607.0,79606.0,0.01712314]
[1744334462046,0.1257198,79604.0,79603.0,0.00050249]
[1744334462240,0.4865198,79604.0,79603.0,0.00050249]
[1744334465545,0.1257403,79591.0,79584.0,0.30017725]
[1744334465843,0.4865403,79591.0,79590.0,0.28476686]
[1744334466443,0.5672403,79591.0,79590.0,0.26719888]
[1744334466651,0.5672403,79591.0,79590.0,0.28456888]
[1744334466843,0.5672403,79591.0,79590.0,0.28456882]
[1744334467144,0.5672403,79591.0,79590.0,0.26719888]
[1744334467543,0.5672403,79591.0,79590.0,0.0418]
[1744334468053,0.5672403,79591.0,79585.0,0.30719888]
[1744334468054,0.1257482,79586.0,79585.0,0.30719888]
[1744334468248,0.1257482,79586.0,79585.0,0.32442754]
[1744334468445,0.1257482,79586.0,79585.0,0.22539888]
[1744334469555,0.1680482,79586.0,79585.0,0.22539888]
[1744334471552,0.17752746,79586.0,79585.0,0.22539888]
[1744334471952,0.1257514,79584.0,79583.0,0.00018837]
[1744334472152,0.4865514,79584.0,79583.0,0.00018837]
[1744334472546,0.5298514,79584.0,79583.0,0.00018837]
[1744334474850,0.5298514,79584.0,79583.0,0.12594137]
[1744334476360,0.3608,79584.0,79583.0,0.12594137]
[1744334476553,0.4865514,79584.0,79583.0,0.12594137]
[1744334477456,0.1257514,79584.0,79583.0,0.12594137]
[1744334478150,0.1257514,79584.0,79583.0,0.14329596]
[1744334479360,0.1257514,79584.0,79583.0,0.15973275]
[1744334479962,0.4865514,79584.0,79583.0,0.01662516]
[1744334480557,0.5282514,79584.0,79583.0,0.01662516]
[1744334480860,0.5282514,79584.0,79583.0,0.00018837]
[1744334487360,0.0628815,79577.0,79570.0,0.0444]
[1744334487561,0.1257719,79571.0,79570.0,0.0444]
[1744334487762,0.1257719,79571.0,79570.0,0.0891]
[1744334488756,0.125783,79564.0,79563.0,0.0001885]
[1744334488966,0.486583,79564.0,79563.0,0.0001885]
[1744334491570,0.49941474,79564.0,79563.0,0.0001885]
[1744334492463,0.49941474,79564.0,79563.0,0.0415885]
[1744334492772,0.61222424,79564.0,79563.0,0.0415885]
[1744334495771,0.1258162,79543.0,79542.0,0.35121568]
[1744334496468,0.3608,79549.0,79548.0,0.1258083]
[1744334496777,0.1258057,79550.0,79549.0,0.1258067]
[1744334497072,0.1257972,79555.0,79554.0,0.1257988]
[1744334497577,0.1257972,79555.0,79554.0,0.2125988]
[1744334497768,0.1257972,79555.0,79554.0,0.2560988]
[1744334498369,0.0001885,79556.0,79555.0,0.1257972]
[1744334498666,0.1257891,79561.0,79560.0,0.1257893]
[1744334498866,0.1257891,79561.0,79560.0,0.14271158]
[1744334499876,0.1257891,79561.0,79560.0,0.2126893]
[1744334501269,0.0628925,79563.0,79560.0,0.2126893]
[1744334501270,0.1128095,79563.0,79562.0,0.1257861]
[1744334501481,0.1128095,79563.0,79562.0,0.14257387]
[1744334501773,0.2385941,79563.0,79562.0,0.14257387]
[1744334502363,0.1128095,79563.0,79562.0,0.14257387]
[1744334502970,0.1128095,79563.0,79562.0,0.39257387]
[1744334503367,0.03182034,79563.0,79562.0,0.39257387]
[1744334503767,0.03182034,79563.0,79562.0,0.49033387]
[1744334505675,0.0001885,79568.0,79562.0,0.49033387]
[1744334505882,0.0001885,79568.0,79567.0,0.4865782]
[1744334506178,0.0001885,79568.0,79567.0,1.48336597]
[1744334506373,0.0001885,79568.0,79567.0,1.56896597]
[1744334506765,0.1259652,79568.0,79567.0,1.56896597]
[1744334507173,0.1259652,79568.0,79567.0,1.5521782]
[1744334507670,0.1259652,79568.0,79567.0,0.4464]
[1744334507973,0.1259652,79568.0,79567.0,0.5721782]
[1744334508576,0.1678652,79568.0,79567.0,0.5721782]
[1744334508873,0.0001885,79568.0,79567.0,0.5721782]
[1744334513280,0.0001885,79568.0,79567.0,0.58892099]
[1744334517682,0.1259652,79568.0,79567.0,0.54582099]
[1744334518081,0.0001885,79568.0,79567.0,0.54582099]
[1744334518793,0.0447885,79568.0,79567.0,0.54582099]
[1744334520292,0.1705652,79568.0,79567.0,0.54582099]
[1744334520790,0.0447885,79568.0,79567.0,0.54582099]
[1744334521590,0.1705652,79568.0,79567.0,0.54582099]
[1744334521980,0.1705652,79568.0,79567.0,0.50332099]
[1744334522479,0.1705652,79568.0,79567.0,0.4865782]
[1744334522784,0.0447885,79568.0,79567.0,0.4865782]
[1744334523189,0.0447885,79568.0,79567.0,0.6202782]
[1744334523391,0.0447885,79568.0,79567.0,0.63708076]
[1744334524295,0.0447885,79568.0,79567.0,0.59198076]
[1744334524481,0.0447885,79568.0,79567.0,0.50338076]
[1744334525087,0.1705652,79568.0,79567.0,0.50338076]
[1744334525391,0.1705652,79568.0,79567.0,0.4865782]
[1744334525392,0.0447885,79568.0,79567.0,0.4865782]
[1744334525790,0.1705652,79568.0,79567.0,0.4865782]
[1744334525991,0.1705652,79568.0,79567.0,0.5284782]
[1744334526495,0.1705652,79568.0,79567.0,0.4865782]
[1744334527488,0.1257877,79561.0,79560.0,0.35118818]
[1744334528293,0.2140877,79561.0,79560.0,0.35118818]
[1744334529894,0.2140877,79561.0,79560.0,0.1257893]
[1744334533489,0.1257925,79558.0,79557.0,0.30036575]
[1744334534297,0.1257925,79558.0,79557.0,0.1259825]
[1744334534493,0.0883,79561.0,79560.0,0.1257893]
[1744334534891,0.0444,79561.0,79560.0,0.14230086]
[1744334535297,0.0444,79561.0,79560.0,0.18550086]
[1744334535500,0.0444,79561.0,79560.0,0.20351926]
[1744334541407,0.0444,79561.0,79560.0,0.20380756]
[1744334545614,0.0001885,79568.0,79567.0,0.1257782]
[1744334545912,0.0001885,79568.0,79567.0,0.6023249]
[1744334546100,0.0001885,79568.0,79567.0,0.63212717]
[1744334546304,0.0001885,79568.0,79567.0,1.69392717]
[1744334546503,0.15070013,79578.0,79577.0,0.1257624]
[1744334546704,0.15070013,79578.0,79577.0,0.51815981]
[1744334546898,0.15070013,79578.0,79577.0,0.51906684]
[1744334547203,0.15070013,79578.0,79577.0,0.50577613]
[1744334547709,0.27646103,79578.0,79577.0,0.52228769]
[1744334549007,0.15070013,79578.0,79577.0,0.52228769]
[1744334549209,0.15070013,79578.0,79577.0,0.52193232]
[1744334550109,0.27646103,79578.0,79577.0,0.60993232]
[1744334550311,0.1261609,79578.0,79577.0,0.60993232]
[1744334554309,0.1261609,79578.0,79577.0,0.52193232]
[1744334554608,0.2134609,79578.0,79577.0,0.52193232]
[1744334554808,0.1700609,79578.0,79577.0,0.52193232]
[1744334555205,0.1700609,79578.0,79577.0,0.60353232]
[1744334555418,0.0443,79578.0,79577.0,0.60353232]
[1744334555619,0.1700609,79578.0,79577.0,0.60353232]
[1744334561234,0.1700609,79578.0,79577.0,0.39616992]
[1744334561420,0.1700609,79578.0,79577.0,0.52193232]
[1744334565429,0.0443,79578.0,79577.0,0.52193232]
[1744334565617,0.0004,79578.0,79577.0,0.52193232]
[1744334565823,0.1261609,79578.0,79577.0,0.52193232]
[1744334566029,0.1702609,79578.0,79577.0,0.52193232]
[1744334567633,0.0445,79578.0,79577.0,0.52193232]
[1744334567829,0.1702609,79578.0,79577.0,0.56273232]
[1744334568132,0.1702609,79578.0,79577.0,0.52193232]
[1744334569433,0.0445,79578.0,79577.0,0.52193232]
[1744334569834,0.1702609,79578.0,79577.0,0.56103232]
[1744334570033,0.2126609,79578.0,79577.0,0.56103232]
[1744334570234,0.1685609,79578.0,79577.0,0.56103232]
[1744334570540,0.0004,79578.0,79577.0,0.56103232]
[1744334572135,0.0004,79578.0,79577.0,0.5605665]
[1744334579343,0.0004,79578.0,79577.0,0.55976398]
[1744334581743,0.1261609,79578.0,79577.0,0.52066398]
[1744334582338,0.2087609,79578.0,79577.0,0.52066398]
[1744334582743,0.2087609,79578.0,79577.0,0.50415242]
[1744334582939,0.2087609,79578.0,79577.0,0.54415242]
[1744334583242,0.083,79578.0,79577.0,0.54415242]
[1744334583438,0.1678609,79578.0,79577.0,0.54415242]
[1744334584147,0.0421,79578.0,79577.0,0.54415242]
[1744334584447,0.0004,79578.0,79577.0,0.54415242]
[1744334585149,0.0004,79578.0,79577.0,0.54366562]
[1744334587250,0.0004,79578.0,79577.0,0.58426562]
[1744334587945,0.1261609,79578.0,79577.0,0.58426562]
[1744334588551,0.1261609,79578.0,79577.0,0.5671624]
[1744334589657,0.1261609,79578.0,79577.0,0.58383206]
[1744334590560,0.1261609,79578.0,79577.0,0.8090892]
[1744334591159,0.0004,79578.0,79577.0,0.8090892]
[1744334591358,0.039,79578.0,79577.0,0.8090892]
[1744334591754,0.1647609,79578.0,79577.0,0.8090892]
[1744334592055,0.1647609,79578.0,79577.0,0.80907169]
[1744334592652,0.1647609,79578.0,79577.0,0.79241954]
[1744334596662,0.1647609,79578.0,79577.0,0.80923311]
[1744334596857,0.039,79578.0,79577.0,0.80923311]
[1744334598168,0.039,79578.0,79577.0,0.8259188]
[1744334599465,0.039,79578.0,79577.0,0.7859188]
[1744334601462,0.1647609,79578.0,79577.0,0.7859188]
[1744334603567,0.1647609,79578.0,79577.0,0.7868608]
[1744334604064,0.1647609,79578.0,79577.0,0.52100366]
[1744334604368,0.1647609,79578.0,79577.0,0.39524126]
[1744334605867,0.1647609,79578.0,79577.0,0.52100366]
[1744334611174,0.039,79578.0,79577.0,0.52100366]
[1744334612481,0.0813,79578.0,79577.0,0.52100366]
[1744334615284,0.2070609,79578.0,79577.0,0.52100366]
[1744334616176,0.2070609,79578.0,79577.0,0.39524126]
[1744334616479,0.2070609,79578.0,79577.0,0.52100366]
[1744334616679,0.2070609,79578.0,79577.0,0.39524126]
[1744334616880,0.2070609,79578.0,79577.0,0.52100366]
[1744334618188,0.2070609,79578.0,79577.0,0.39524126]
[1744334618384,0.125783,79564.0,79557.0,0.0001885]
[1744334618686,0.486583,79564.0,79557.0,0.0001885]
[1744334618890,0.486583,79564.0,79559.0,0.1257898]
[1744334619083,0.486583,79564.0,79557.0,0.0001885]
[1744334619283,0.568383,79564.0,79557.0,0.0001885]
[1744334619483,0.568383,79564.0,79558.0,0.1257917]
[1744334619692,0.580737,79564.0,79558.0,0.1257917]
[1744334619987,0.580737,79564.0,79557.0,0.0001885]
[1744334620198,0.580737,79564.0,79559.0,0.1257907]
[1744334620793,0.580737,79564.0,79560.0,0.125789]
[1744334621795,0.1257877,79561.0,79560.0,0.125789]
[1744334626694,0.1257925,79558.0,79557.0,0.0001885]
[1744334627091,0.1257925,79558.0,79557.0,0.1259825]
[1744334628005,0.1257925,79558.0,79557.0,0.2048825]
[1744334628300,0.1257925,79558.0,79557.0,0.0790885]
[1744334628507,0.1257925,79558.0,79557.0,0.1641825]
[1744334629196,0.1257925,79558.0,79557.0,0.0001885]
[1744334629800,0.2051925,79558.0,79557.0,0.0001885]
[1744334629998,0.2471925,79558.0,79557.0,0.0001885]
[1744334630296,0.6079925,79558.0,79557.0,0.0001885]
[1744334631003,0.2471925,79558.0,79557.0,0.0001885]
[1744334631695,0.2471925,79558.0,79557.0,0.01654846]
[1744334634408,0.1258067,79549.0,79548.0,0.00927839]
[1744334634603,0.1258209,79540.0,79539.0,1.2835278]
[1744334634804,0.188725,79546.0,79545.0,0.1887157]
[1744334635005,0.0629073,79546.0,79545.0,0.19817728]
[1744334635511,0.1022073,79546.0,79545.0,0.27537728]
[1744334637208,0.1022073,79546.0,79545.0,0.08666158]
[1744334637412,0.1022073,79546.0,79545.0,0.04736158]
[1744334637610,0.1258209,79540.0,79539.0,0.0376]
[1744334637811,0.1258225,79539.0,79538.0,0.0001885]
[1744334638111,0.1640225,79539.0,79538.0,0.0001885]
[1744334638606,0.5248225,79539.0,79538.0,0.0001885]
[1744334640612,0.5248225,79539.0,79538.0,0.00970172]
[1744334640811,0.5248225,79539.0,79538.0,0.0001885]
[1744334644005,0.5248225,79539.0,79531.0,0.00050295]
[1744334644006,0.1258336,79532.0,79531.0,0.00050295]
[1744334644210,0.4866336,79532.0,79531.0,0.00050295]
[1744334644913,0.5667336,79532.0,79531.0,0.00050295]
[1744334649918,0.0629186,79530.0,79524.0,0.0001885]
[1744334650219,0.1258447,79525.0,79524.0,0.0001885]
[1744334651222,0.2078447,79525.0,79524.0,0.0001885]
[1744334652028,0.1667447,79525.0,79524.0,0.1260347]
[1744334652413,0.1667447,79525.0,79524.0,0.2049347]
[1744334661029,0.1667447,79525.0,79524.0,0.0410885]
[1744334661822,0.1667447,79525.0,79524.0,0.1669347]
[1744334663538,0.1258447,79525.0,79524.0,0.1669347]
[1744334666434,0.4237214,79527.0,79526.0,0.1258431]
[1744334666741,0.1258431,79526.0,79525.0,0.0392]
[1744334668744,0.1258321,79525.0,79524.0,0.0410885]
[1744334668945,0.1635321,79525.0,79524.0,0.0410885]
[1744334671448,0.1258321,79525.0,79524.0,0.0410885]
[1744334674650,0.1258321,79525.0,79524.0,0.05754463]
[1744334674947,0.23866692,79525.0,79524.0,0.05754463]
[1744334675246,0.11283482,79525.0,79524.0,0.05754463]
[1744334675449,0.11283482,79525.0,79524.0,0.18337833]
[1744334675849,0.11283482,79525.0,79524.0,0.22347833]
[1744334676044,0.11283482,79525.0,79524.0,0.24033476]
[1744334679157,0.125828,79528.0,79527.0,0.1258289]
[1744334679356,0.125828,79528.0,79527.0,0.14268533]
[1744334679745,0.125828,79528.0,79527.0,0.15914146]
[1744334681159,0.23866002,79530.0,79529.0,0.1258258]
[1744334681360,0.23866002,79530.0,79529.0,0.14268223]
[1744334681762,0.23866002,79530.0,79529.0,0.15913836]
[1744334682056,0.23866002,79530.0,79529.0,0.14751256]
[1744334682454,0.23866002,79530.0,79529.0,0.27333836]
[1744334682847,0.23866002,79530.0,79529.0,0.14751256]
[1744334683463,0.23866002,79530.0,79529.0,0.27333836]
[1744334683658,0.1258252,79530.0,79529.0,0.27333836]
[1744334688463,0.1258252,79530.0,79529.0,0.14751256]
[1744334689064,0.1258252,79530.0,79529.0,0.27333836]
[1744334692959,0.0404,79531.0,79529.0,0.14751256]
[1744334693164,0.0404,79531.0,79530.0,0.14268063]
[1744334693467,0.0404,79531.0,79530.0,0.15913676]
[1744334693766,0.0404,79531.0,79530.0,0.23603676]
[1744334694169,0.1662226,79531.0,79530.0,0.23603676]
[1744334695868,0.11283482,79534.0,79533.0,0.1258194]
[1744334696165,0.23865262,79534.0,79533.0,0.50347583]
[1744334696470,0.1258178,79534.0,79533.0,0.50347583]
[1744334696767,0.1258178,79534.0,79533.0,0.51993196]
[1744334697766,0.1661178,79534.0,79533.0,0.55963196]
[1744334701668,0.0403,79534.0,79533.0,0.56081225]
[1744334702867,0.1661178,79534.0,79533.0,0.56081225]
[1744334705066,0.0403,79534.0,79533.0,0.56081225]
[1744334705474,0.0403,79534.0,79533.0,0.78651024]
[1744334706060,0.101705,79539.0,79533.0,0.78651024]
[1744334706061,0.15044643,79545.0,79533.0,0.91069084]
[1744334706269,0.15044643,79545.0,79544.0,0.486602]
[1744334706465,0.15044643,79545.0,79544.0,0.52109485]
[1744334707171,0.15044643,79545.0,79544.0,0.59879485]
[1744334709272,0.27624683,79545.0,79544.0,0.39529285]
[1744334709477,0.27624683,79545.0,79544.0,0.03449285]
[1744334710071,0.39164683,79545.0,79544.0,0.03449285]
[1744334710769,0.2412004,79545.0,79544.0,0.03449285]
[1744334710969,0.2012004,79545.0,79544.0,0.03449285]
[1744334711178,0.1640004,79545.0,79544.0,0.03449285]
[1744334712269,0.00018862,79552.0,79551.0,0.125791]
[1744334712467,0.00018862,79552.0,79551.0,0.14382772]
[1744334712773,0.00018862,79552.0,79551.0,1.12382772]
[1744334712973,0.0123279,79560.0,79556.0,0.0628908]
[1744334713174,0.0373,79563.0,79562.0,0.1257736]
[1744334713478,0.0373,79563.0,79562.0,0.1533097]
[1744334713971,0.0373,79563.0,79562.0,0.2330097]
[1744334714488,0.15044643,79565.0,79564.0,0.1257704]
[1744334714671,0.18774643,79565.0,79564.0,0.14380712]
[1744334714972,0.20045726,79565.0,79564.0,0.14380712]
[1744334715177,0.32622606,79565.0,79564.0,0.14380712]
[1744334715573,0.32622606,79565.0,79564.0,0.16026325]
[1744334716180,0.36592606,79565.0,79564.0,0.16026325]
[1744334719571,0.24015726,79565.0,79564.0,0.16026325]
[1744334720078,0.36592606,79565.0,79564.0,0.16026325]
[1744334723982,0.21547963,79565.0,79564.0,0.16026325]
[1744334725771,0.05001083,79565.0,79564.0,0.16026325]
[1744334726991,0.17577963,79565.0,79564.0,0.16026325]
[1744334732685,0.17577963,79565.0,79564.0,0.52106325]
[1744334733386,0.17577963,79565.0,79564.0,0.39529285]
[1744334733587,0.17577963,79565.0,79564.0,0.01645613]
[1744334733985,0.1257878,79553.0,79552.0,0.22445406]
[1744334734181,0.1257878,79553.0,79552.0,0.24196599]
[1744334734589,0.1257878,79553.0,79552.0,0.36775539]
[1744334734789,0.1631878,79553.0,79552.0,0.36775539]
[1744334734980,0.0374,79553.0,79552.0,0.36775539]
[1744334735377,0.0374,79553.0,79552.0,0.40735539]
[1744334735885,0.1631878,79553.0,79552.0,0.40735539]
[1744334737891,0.1631878,79553.0,79552.0,0.28156599]
[1744334738189,0.1631878,79553.0,79552.0,0.24196599]
[1744334738590,0.1631878,79553.0,79552.0,0.01751193]
[1744334745698,0.0374,79553.0,79552.0,0.14330133]
[1744334745889,0.1631878,79553.0,79552.0,0.01751193]
[1744334746290,0.1631878,79553.0,79552.0,0.03441441]
[1744334746490,0.1631878,79553.0,79552.0,0.07411441]
[1744334746702,0.1631878,79553.0,79552.0,0.11191441]
[1744334747794,0.0374,79553.0,79552.0,0.23770381]
[1744334748891,0.0374,79553.0,79552.0,0.25099308]
[1744334749296,0.1631878,79553.0,79552.0,0.25099308]
[1744334753596,0.1631878,79553.0,79552.0,0.04766678]
[1744334753800,0.1631878,79553.0,79552.0,0.03441441]
[1744334754303,0.2028878,79553.0,79552.0,0.03441441]
[1744334754600,0.2028878,79553.0,79552.0,0.16020381]
[1744334754998,0.2028878,79553.0,79552.0,0.03441441]
[1744334760590,0.0374,79553.0,79552.0,0.16020381]
[1744334760802,0.1631878,79553.0,79552.0,0.16020381]
[1744334761400,0.1631878,79553.0,79552.0,0.19970381]
[1744334763611,0.1631878,79553.0,79552.0,0.11401441]
[1744334764014,0.1631878,79553.0,79552.0,0.07391441]
[1744334764309,0.1631878,79553.0,79552.0,0.19970381]
[1744334764705,0.1631878,79553.0,79552.0,0.24010381]
[1744334765112,0.1631878,79553.0,79552.0,0.03441441]
[1744334766015,0.1631878,79553.0,79552.0,0.16020381]
[1744334766611,0.1631878,79553.0,79552.0,0.03441441]
[1744334766810,0.1631878,79553.0,79552.0,0.03449874]
[1744334768014,0.1631878,79553.0,79552.0,0.16028814]
[1744334768211,0.5239878,79553.0,79552.0,0.03449874]
[1744334769117,0.1631878,79553.0,79552.0,0.03449874]
[1744334769415,0.5239878,79553.0,79552.0,0.03449874]
[1744334770210,0.5239878,79553.0,79552.0,0.03442357]
[1744334770506,0.5239878,79553.0,79552.0,0.01690248]
[1744334770711,0.1257957,79548.0,79547.0,0.29927209]
[1744334770911,0.1257957,79548.0,79547.0,0.31662748]
[1744334771114,0.1257957,79548.0,79547.0,0.29927209]
[1744334771315,0.1257957,79548.0,79547.0,0.22587249]
[1744334771503,0.2055957,79548.0,79547.0,0.22587249]